Cogmind - Beta 14 *** ADVENTURER MODE // 2025.04.27 @ 15:53:40 Player: zoefiri Result: Destroyed by H-88 Terminator with KE Penetrator Performance ------------- Evolutions (8) 4000 Regions Visited (15) 3000 Robots Destroyed (76) 380 Value Destroyed (3253) 3253 Prototype IDs (25) 500 Alien Tech Used (0) 0 Bonus (1044) 1044 TOTAL SCORE: 12177 Bonus ------- High Alert Combat Kills 129 Follower Combat Kills 789 Aligned with FarCom 300 Friendly Fire -174 Cogmind --------- Core Integrity 0/1450 Matter 27/300 Energy 98/100 System Corruption 7% Temperature Cool (0) Movement Core (50) Location -2/Research Parts ------- > --- POWER (3) -------- (None) > --- PROPULSION (7) --- (None) > --- UTILITY (8) ------ Machine Analyzer > --- WEAPON (5) ------- (None) > --- INVENTORY (5) ---- Light Quantum Reactor Cloak of Protection Railgun Railgun Peak State ------------ > --- POWER ------------ Micro Fission Core Micro Fission Core > --- PROPULSION ------- Antigrav System Antigrav System Antigrav System Antigrav System Antigrav System > --- UTILITY ---------- Improved Heat Sink Advanced Heat Sink Advanced Targeting Computer Hacking Suite > --- WEAPON ----------- Field Laser Plasma Rifle Railgun > --- INVENTORY -------- VTOL Module Advanced Weight Redist. System Cloak of Protection Field Laser Plasma Rifle [Rating: 73] Favorites ----------- Power Neutrino Core Engine Ion Engine Power Core Neutrino Core Reactor Light Antimatter Reactor Propulsion Flight Unit Treads Armored Treads Leg Flexi-carbon Leg Hover Unit Antigrav System Flight Unit Flight Unit Utility Hacking Suite Device Improved Heat Sink Storage Small Storage Unit Processor Machine Analyzer Hackware Hacking Suite Protection Improved Light Armor Plating Weapon Light Assault Rifle Energy Gun Field Laser Energy Cannon Long-range Proton Cannon Ballistic Gun Light Assault Rifle Ballistic Cannon Heavy Gauss Cannon Launcher Micro-nuke Launcher Build | -11 -10 -10 -10 -9 -8 -7 -6 -6 -6 -5 -5 -5 -4 -3 -2 ------- Run | Yrd Mat Min Exi Min Mat Fac Fac Ext Cet Fac Upp Upp Fac Res Res Slots Evolved 16 | . . . . . 4 2 2 . . 2 . . 2 2 2 Power 2 | . . . . . 1 . 1 . . . . . . . . Propulsion 5 | . . . . . 2 1 1 . . . . . 1 . . Utility 6 | . . . . . 1 1 . . . 1 . . 1 2 . Weapon 3 | . . . . . . . . . . 1 . . . . 2 Parts Attached 143 | 6 3 2 . . 9 14 16 33 . 7 7 . 35 3 8 Power 27 | 1 . . . . 1 3 3 9 . 2 1 . 5 . 2 Engine 9 | 1 . . . . 1 2 2 3 . . . . . . . Core 14 | . . . . . . 1 1 5 . 2 1 . 4 . . Reactor 4 | . . . . . . . . 1 . . . . 1 . 2 Propulsion 48 | 2 3 2 . . 2 4 7 14 . . 2 . 11 . 1 Treads 3 | . . . . . . 2 . 1 . . . . . . . Leg 19 | 2 2 . . . . 1 3 11 . . . . . . . Wheel . | . . . . . . . . . . . . . . . . Hover 10 | . . . . . . . . 2 . . . . 7 . 1 Flight 16 | . 1 2 . . 2 1 4 . . . 2 . 4 . . Utility 25 | 1 . . . . 5 4 1 4 . 1 1 . 6 1 1 Device 16 | . . . . . 5 3 . 2 . 1 1 . 3 . 1 Storage 1 | 1 . . . . . . . . . . . . . . . Processor 2 | . . . . . . . . . . . . . 2 . . Hackware 5 | . . . . . . 1 1 1 . . . . 1 1 . Protection 1 | . . . . . . . . 1 . . . . . . . Artifact . | . . . . . . . . . . . . . . . . Weapon 43 | 2 . . . . 1 3 5 6 . 4 3 . 13 2 4 Energy Gun 15 | . . . . . . 1 1 2 . 2 2 . 6 . 1 Energy Cannon 1 | . . . . . . . . . . 1 . . . . . Ballistic Gun 22 | 2 . . . . 1 2 2 3 . 1 . . 6 2 3 Ballistic Cannon 4 | . . . . . . . 2 1 . . 1 . . . . Launcher 1 | . . . . . . . . . . . . . 1 . . Special Weapon . | . . . . . . . . . . . . . . . . Impact Weapon . | . . . . . . . . . . . . . . . . Slashing Weapon . | . . . . . . . . . . . . . . . . Piercing Weapon . | . . . . . . . . . . . . . . . . Special Melee Weapon . | . . . . . . . . . . . . . . . . Unidentified Prototypes 2 | . . . . . . 1 . . . . . . . . 1 Parts Lost 69 | . . . . . . 3 19 6 6 2 5 . 23 1 4 Power 13 | . . . . . . 1 4 2 1 . . . 4 . 1 Propulsion 27 | . . . . . . 1 6 3 4 1 2 . 9 1 . Utility 13 | . . . . . . . 5 1 . . 1 . 4 . 2 Weapon 16 | . . . . . . 1 4 . 1 1 2 . 6 . 1 Highest Loss Streak 9 | . . . . . . 2 9 2 6 2 4 . 7 1 4 To Critical Strikes 1 | . . . . . . . . . . . . . 1 . . Average Slot Usage (%) 46 | . 70 57 57 57 79 78 38 82 61 37 2 5 29 19 11 Engine 4 | . 14 14 14 14 15 11 2 5 . . . . . . . Core 4 | . . . . . . 2 2 10 8 9 . . 3 . . Treads 1 | . . . . . . . . 5 . . . . . . . Leg 5 | . 27 5 . . . . 2 20 21 1 . . . . . Hover 2 | . . . . . . . . 6 . . . . 7 2 . Flight 6 | . . 22 28 28 33 26 8 . . . . . . . . Device 7 | . . . . . 13 17 10 9 13 11 . 5 5 . . Hackware 3 | . . . . . . 4 2 5 6 5 1 . 4 8 5 Energy Gun 2 | . . . . . . 4 2 4 4 2 . . 3 . . Ballistic Gun 4 | . 21 14 14 14 17 8 1 4 6 2 . . 2 3 . Peak Build Rating 73 | 6 6 4 5 5 18 27 37 65 53 46 20 7 73 38 46 Average Rating 24 | 4 4 3 4 5 12 20 17 50 41 32 3 7 28 20 11 On Entrance 13 | . 6 4 4 5 5 14 27 19 53 28 5 7 7 22 12 Naked Turns 348 | . . . . . . . . . . . 348 . . . . Heaviest Build 48 | 12 12 6 6 6 14 21 26 48 34 40 6 2 35 18 38 Greatest Support 90 | 20 20 20 8 8 16 21 33 90 90 20 8 3 55 12 19 Greatest Overweight (x) 13 | 2 1 . . . . 1 4 2 . 13 1 . 5 1 1 Average Overweight (x) . | . . . . . . . . . . 2 . . . . . Largest Inventory Capacity 8 | 8 8 5 5 5 5 5 5 5 5 5 5 5 5 5 5 Average Capacity 5 | 6 6 5 5 5 5 5 5 5 5 5 5 5 5 5 5 Most Carried 5 | 2 5 5 5 5 4 5 5 5 5 5 5 5 5 5 5 Average Carried 4 | 1 3 4 5 5 2 4 4 4 5 4 4 5 4 4 4 Final Capacity 8 | 8 5 5 5 5 5 5 5 5 5 5 5 5 5 5 5 Final Carried 5 | 2 5 5 5 5 4 5 4 5 5 5 5 5 4 5 4 Class Distribution -------------------- 35% | Hacker-Mutant 29% | Mutant 20% | Scavenger-Mutant 6% | Scavenger-Sprinter 4% | Scavenger-Skirmisher Dominant Class ---------------- Mutant | -10/Materials Mutant | -10/Mines Mutant | -10/Exiles Mutant | -9/Mines Scavenger-Sprinter | -8/Materials Hacker-Mutant | -7/Factory Mutant | -6/Factory Scavenger-Mutant | -6/Extension Scavenger-Mutant | -6/Cetus Hacker-Mutant | -5/Factory Mutant | -5/Upper Caves Mutant | -5/Upper Caves Hacker-Mutant | -4/Factory Hacker-Mutant | -3/Research Hacker-Mutant | -2/Research Resources | -11 -10 -10 -10 -9 -8 -7 -6 -6 -6 -5 -5 -5 -4 -3 -2 ----------- Run | Yrd Mat Min Exi Min Mat Fac Fac Ext Cet Fac Upp Upp Fac Res Res Matter Collected 2469 | 75 46 30 . 175 101 88 473 654 . 88 75 . 585 . 79 Remotely . | . . . . . . . . . . . . . . . . Salvage Created 3019 | . 61 42 . 50 170 141 443 631 . 308 98 . 1075 . . Parts 145 | . 3 2 . 4 9 8 15 22 . 9 7 . 66 . . Haulers Intercepted 1 | . . . . . . 1 . . . . . . . . . Recyclers Shooed 3 | . . . . . . . 1 . . 2 . . . . . Parts Field Recycled . | . . . . . . . . . . . . . . . . Retrieved Matter . | . . . . . . . . . . . . . . . . Parts Self-Destructed 6 | . . . . . . . . . . . 6 . . . . Prevented 2 | . . . . . . . . . . . 2 . . . . Kills | -11 -10 -10 -10 -9 -8 -7 -6 -6 -6 -5 -5 -5 -4 -3 -2 ------- Run | Yrd Mat Min Exi Min Mat Fac Fac Ext Cet Fac Upp Upp Fac Res Res Combat Hostiles Destroyed 64 | . 2 3 . 1 3 2 11 10 . 4 4 . 24 . . Melee 1 | . . . . . . . . . . . 1 . . . . Guns 41 | . 2 3 . 1 3 2 9 6 . . . . 15 . . Cannons 6 | . . . . . . . 2 1 . . 3 . . . . AOE 11 | . . . . . . . . . . 2 . . 9 . . Classes Destroyed 13 | . 2 . . 1 . 2 1 2 . . . . 5 . . Worker 1 | . . . . . . . . . . . . . 1 . . Builder 3 | . . . . . . . . . . . . . 3 . . Tunneler 2 | . . . . . . . . . . . . . 2 . . Hauler 1 | . . . . . . 1 . . . . . . . . . Operator 2 | . . . . . . . . 1 . . . . 1 . . Watcher 2 | . . . . . . . 2 . . . . . . . . Swarmer 19 | . 1 3 . . . . 6 . . . 4 . 5 . . Grunt 25 | . 1 . . . 2 1 4 4 . 2 . . 11 . . Brawler 1 | . . . . . . . . . . . . . 1 . . Duelist 1 | . . . . . . . . . . . . . 1 . . Sentry 10 | . . . . 1 1 . . 5 . 2 . . 1 . . Hunter 1 | . . . . . . . . 1 . . . . . . . Programmer 7 | . . . . . . 1 1 . . . . . 5 . . Thug 1 | . . . . . . . . 1 . . . . . . . Best Kill Streak 17 | . 2 3 . 1 2 1 3 3 . 2 3 . 17 . . Combat Bots Only 10 | . 2 3 . 1 2 1 3 3 . 2 3 . 10 . . Max Kills in Single Turn 3 | . 1 1 . 1 1 1 1 1 . 2 1 . 3 . . Gunslinging . | . . . . . . . . . . . . . . . . Exploded 3 | . . . . . . . . . . 2 . . 3 . . Melee 1 | . . . . . . . . . . . 1 . . . . Uniques/NPCs Destroyed . | . . . . . . . . . . . . . . . . Combat | -11 -10 -10 -10 -9 -8 -7 -6 -6 -6 -5 -5 -5 -4 -3 -2 -------- Run | Yrd Mat Min Exi Min Mat Fac Fac Ext Cet Fac Upp Upp Fac Res Res Hostile Shots Fired 1259 | . 20 17 . 1 19 16 164 385 32 21 104 . 221 93 166 Missed 469 | . 11 5 . 1 6 . 49 162 13 7 34 . 79 43 59 Damage Taken 10738 | . 57 73 . . 144 190 1710 1781 415 256 1002 . 2406 810 1894 Core 4638 | . 18 14 . . 57 83 453 157 125 20 818 . 857 579 1457 Absorbed by Shields . | . . . . . . . . . . . . . . . . Ignored by Resistances 3050 | . 20 24 . . 42 55 467 564 113 67 273 . 689 227 509 Regen/Repaired (Parts) 201 | . . . . . . 13 . 188 . . . . . . . Core Remaining (%) 59 | 100 . . . 87 89 88 . . 13 . . 16 25 55 . Volleys Fired 267 | . 9 8 . 4 16 20 72 55 . 9 9 . 64 . 1 Largest 3 | . 1 1 . 1 2 2 2 2 . 3 2 . 3 . 3 Hottest 187 | . 20 20 . 20 40 84 92 132 . 179 145 . 187 . 105 Shots Fired 437 | . 9 8 . 4 31 38 97 100 . 24 10 . 113 . 3 Gun 375 | . 9 8 . 4 31 38 75 87 . 16 3 . 101 . 3 Cannon 50 | . . . . . . . 22 13 . 8 7 . . . . Launcher 12 | . . . . . . . . . . . . . 12 . . Special . | . . . . . . . . . . . . . . . . Kinetic 277 | . 9 8 . 4 31 31 54 49 . 7 7 . 74 . 3 Thermal 131 | . . . . . . 7 43 51 . 1 2 . 27 . . Explosive 12 | . . . . . . . . . . . . . 12 . . Electromagnetic 17 | . . . . . . . . . . 16 1 . . . . Robot Hit Streak 41 | . 6 9 . 3 22 27 19 22 . 18 8 . 41 . 17 Robot Miss Streak 3 | . 3 1 . 1 1 2 3 2 . 1 3 . 2 . . Penetration Max 1 | . . . . . . . 1 1 . . . . 1 . . Secondary Targets 2 | . . . . . . . 1 1 . . . . . . . Max Gunslinging Chain 1 | . . . . . . . 1 1 . . . . . . . Shots Hit Robots 359 | . 6 7 . 3 29 27 77 83 . 21 7 . 96 . 3 Core Hits 181 | . 3 5 . 1 11 10 30 37 . 7 7 . 66 1 3 Critical Kills 2 | . . . . . 1 . . . . . . . 1 . . Critical Parts Destroyed 1 | . . . . . . . . 1 . . . . . . . Critical Strikes 12 | . . . . . 1 . 4 5 . . . . 2 . . Burn 4 | . . . . . . . 1 2 . . . . 1 . . Destroy 3 | . . . . . 1 . . 1 . . . . 1 . . Blast 5 | . . . . . . . 3 2 . . . . . . . Melee Attacks . | . . . . . . . . . . . . . . . . Impact . | . . . . . . . . . . . . . . . . Slashing . | . . . . . . . . . . . . . . . . Piercing . | . . . . . . . . . . . . . . . . Sneak Attacks . | . . . . . . . . . . . . . . . . Combat Hostiles . | . . . . . . . . . . . . . . . . Follow-up Attacks . | . . . . . . . . . . . . . . . . Damage Inflicted 9176 | . 52 55 . 25 225 258 1762 1772 . 626 153 . 4094 5 149 Guns 5304 | . 52 55 . 25 225 258 1006 1355 . 273 10 . 1946 . 99 Cannons 1499 | . . . . . . . 756 397 . 213 133 . . . . Explosions 2281 | . . . . . . . . . . 133 . . 2148 . . Melee . | . . . . . . . . . . . . . . . . Ramming 92 | . . . . . . . . 20 . 7 10 . . 5 50 Kinetic 4469 | . 52 55 . 25 225 171 1222 946 . 101 133 . 1440 . 99 Thermal 2090 | . . . . . . 87 540 806 . 151 . . 506 . . Explosive 2148 | . . . . . . . . . . . . . 2148 . . Electromagnetic 377 | . . . . . . . . . . 367 10 . . . . Impact . | . . . . . . . . . . . . . . . . Slashing . | . . . . . . . . . . . . . . . . Piercing . | . . . . . . . . . . . . . . . . Highest Corruption 9 | . . . . . . 3 4 4 4 . . . 9 . 7 Average Corruption 3 | . . . . . . 2 2 4 4 . . . 5 . 5 Corruption Purged . | . . . . . . . . . . . . . . . . Corruption Blocked . | . . . . . . . . . . . . . . . . Effects 83 | . . . . . . 7 19 37 . . . . 16 . 4 Message Errors 18 | . . . . . . 2 5 7 . . . . 3 . 1 Matter Fused 25 | . . . . . . 1 5 12 . . . . 5 . 2 Heat Flow Errors 8 | . . . . . . 1 2 3 . . . . 2 . . Energy Discharges 6 | . . . . . . 1 1 2 . . . . 2 . . Parts Rejected 1 | . . . . . . . . 1 . . . . . . . Data Loss (minor) 11 | . . . . . . . 3 4 . . . . 3 . 1 Data Loss (major) 1 | . . . . . . . . 1 . . . . . . . Misfires 7 | . . . . . . 1 1 4 . . . . 1 . . Alerts 1 | . . . . . . . . 1 . . . . . . . Weapon Failures 5 | . . . . . . 1 2 2 . . . . . . . Overload Shots . | . . . . . . . . . . . . . . . . Overflow Damage 127 | . . . . . . . 68 3 . . . . 56 . . Projectiles 71 | . . . . . . . 68 3 . . . . . . . Explosions 56 | . . . . . . . . . . . . . 56 . . Melee . | . . . . . . . . . . . . . . . . Knockbacks 15 | . . . . . . . 12 2 . . 1 . . . . Impact . | . . . . . . . . . . . . . . . . Kinetic 14 | . . . . . . . 11 2 . . 1 . . . . Secondary 1 | . . . . . . . 1 . . . . . . . . Self-Inflicted Damage 66 | . . . . . . . 34 . . 3 4 . . 2 23 Shots 1 | . . . . . . . 1 . . . . . . . . Rammed 16 | . . . . . . . . 1 . 2 3 . . 1 9 Targets Rammed 23 | 1 . . . . . . . 7 . 2 3 . . 1 9 Kicked 7 | 1 . . . . . . . 6 . . . . . . . Crushed . | . . . . . . . . . . . . . . . . Highest Temperature 260 | . 6 . . 6 9 135 248 148 . 24 51 . 200 . 260 Average Temperature 67 | . 6 . . 3 5 42 107 33 . 12 31 . 43 . 118 Received Heat Transfer 2805 | . 12 . . . 108 72 648 597 54 63 255 . 372 126 498 Effects 2 | . . . . . . . 2 . . . . . . . . Energy Bleed 2 | . . . . . . . 2 . . . . . . . . Siege Activations . | . . . . . . . . . . . . . . . . Robots Corrupted 2 | . . . . . . . . . . 2 . . . . . Combat Hostiles 2 | . . . . . . . . . . 2 . . . . . Parts Fried 2 | . . . . . . . . . . 2 . . . . . Impact Corruptions 1 | . . . . . . . 1 . . . . . . . . Robots Melted 3 | . . . . . . . . 3 . . . . . . . Combat Hostiles 3 | . . . . . . . . 3 . . . . . . . Parts Melted 17 | . . . . . . 2 3 9 . . . . 3 . . Heat Transferred 4509 | . . . . . . 185 1295 1813 . 137 . . 1079 . . Parts Sabotaged . | . . . . . . . . . . . . . . . . Parts Stolen . | . . . . . . . . . . . . . . . . Parts Stripped . | . . . . . . . . . . . . . . . . Power Chain Reactions 1 | . . . . . . . . . . 1 . . . . . Alert | -11 -10 -10 -10 -9 -8 -7 -6 -6 -6 -5 -5 -5 -4 -3 -2 ------- Run | Yrd Mat Min Exi Min Mat Fac Fac Ext Cet Fac Upp Upp Fac Res Res Peak Influence 658 | . 110 106 . 156 146 113 300 237 36 141 . . 658 409 277 Initial 239 | . . 36 . . 51 56 5 . 36 . . . 78 239 200 Average 105 | . 19 96 . 38 94 74 66 86 16 47 . . 182 275 194 Maximum Alert Level 2 | . . . . . . . 1 1 . . . . 2 2 1 Low Security (%) 77 | 100 100 100 . 100 100 100 91 85 100 100 . . 52 . 22 Level 1 20 | . . . . . . . 8 14 . . . . 37 94 77 Level 2 1 | . . . . . . . . . . . . . 9 5 . Level 3 . | . . . . . . . . . . . . . . . . Level 4 . | . . . . . . . . . . . . . . . . Level 5 . | . . . . . . . . . . . . . . . . High Security . | . . . . . . . . . . . . . . . . Max Security . | . . . . . . . . . . . . . . . . Squads Dispatched 22 | . . . . . 1 2 5 4 . 2 . . 4 1 3 Investigation 1 | . . . . . . . . 1 . . . . . . . Extermination 6 | . . . . . . . 2 . . 1 . . 2 . 1 Reinforcement 13 | . . . . . 1 2 3 3 . 1 . . 2 1 . Assault . | . . . . . . . . . . . . . . . . Garrison 2 | . . . . . . . . . . . . . . . 2 Intercept . | . . . . . . . . . . . . . . . . Searches Triggered . | . . . . . . . . . . . . . . . . Construction Impeded 4 | . . . . . . . 1 2 . . . . 1 . . Haulers Reinforced 1 | . . . . . . 1 . . . . . . . . . Active Scanning Responses . | . . . . . . . . . . . . . . . . Cargo Convoy Interrupts . | . . . . . . . . . . . . . . . . Stealth | -11 -10 -10 -10 -9 -8 -7 -6 -6 -6 -5 -5 -5 -4 -3 -2 --------- Run | Yrd Mat Min Exi Min Mat Fac Fac Ext Cet Fac Upp Upp Fac Res Res Distress Signals 17 | . 1 . . . . . 2 6 1 3 . . 1 2 1 Communications Jammed . | . . . . . . . . . . . . . . . . Distress Signals . | . . . . . . . . . . . . . . . . Times Spotted 227 | . 5 3 1 6 9 6 31 38 5 13 28 . 44 19 19 Peak Tracking Total 10 | . 7 3 6 4 8 2 5 5 5 10 8 . 9 10 10 Tactical Retreats 38 | . 2 . 1 1 1 . 4 3 . 1 12 . 5 3 5 Traps | -11 -10 -10 -10 -9 -8 -7 -6 -6 -6 -5 -5 -5 -4 -3 -2 ------- Run | Yrd Mat Min Exi Min Mat Fac Fac Ext Cet Fac Upp Upp Fac Res Res Traps Triggered 8 | . . . . . . 1 4 1 . . . . 2 . . Indirectly . | . . . . . . . . . . . . . . . . Trap Hack Attempts . | . . . . . . . . . . . . . . . . Triggered . | . . . . . . . . . . . . . . . . Disarmed . | . . . . . . . . . . . . . . . . Reprogrammed . | . . . . . . . . . . . . . . . . Reused . | . . . . . . . . . . . . . . . . Traps Extracted . | . . . . . . . . . . . . . . . . Installed . | . . . . . . . . . . . . . . . . Triggered 1 | . . . . . . . . . . . 1 . . . . Machines | -11 -10 -10 -10 -9 -8 -7 -6 -6 -6 -5 -5 -5 -4 -3 -2 ---------- Run | Yrd Mat Min Exi Min Mat Fac Fac Ext Cet Fac Upp Upp Fac Res Res Machines Disabled 5 | . . . . . . . 1 . . . . . 4 . . Max in Single Turn 1 | . . . . . . . 1 . . . . . 1 . . Machines Repaired . | . . . . . . . . . . . . . . . . Machines Dismantled . | . . . . . . . . . . . . . . . . Machines Sabotaged . | . . . . . . . . . . . . . . . . Overloaded Fab Kills . | . . . . . . . . . . . . . . . . Hacking | -11 -10 -10 -10 -9 -8 -7 -6 -6 -6 -5 -5 -5 -4 -3 -2 --------- Run | Yrd Mat Min Exi Min Mat Fac Fac Ext Cet Fac Upp Upp Fac Res Res Machines Accessed 13 | . . . 1 . . 2 1 4 . . 1 . 1 . 3 Terminals 6 | . . . . . . . . 3 . . . . 1 . 2 Fabricators 2 | . . . . . . . 1 . . . . . . . 1 Repair Stations 2 | . . . . . . 1 . 1 . . . . . . . Recycling Units . | . . . . . . . . . . . . . . . . Scanalyzers . | . . . . . . . . . . . . . . . . Garrison Access 1 | . . . . . . 1 . . . . . . . . . Total Hacks 25 | . . . 1 . . 5 1 8 . . 1 . 3 . 6 Successful 13 | . . . 1 . . 3 1 5 . . 1 . . . 2 Failed 12 | . . . . . . 2 . 3 . . . . 3 . 4 Catastrophic 1 | . . . . . . . . . . . . . . . 1 Database Lockouts . | . . . . . . . . . . . . . . . . Manual 1 | . . . 1 . . . . . . . . . . . . Terminals 12 | . . . . . . . . 5 . . . . 3 . 4 Fabricators 3 | . . . . . . . 1 . . . . . . . 2 Repair Stations 6 | . . . . . . 3 . 3 . . . . . . . Recycling Units . | . . . . . . . . . . . . . . . . Scanalyzers . | . . . . . . . . . . . . . . . . Garrison Access 2 | . . . . . . 2 . . . . . . . . . Terminal Hacks 7 | . . . 1 . . . . 3 . . 1 . . . 2 Open Door 4 | . . . . . . . . 3 . . 1 . . . . Recycling Unit Index 1 | . . . . . . . . . . . . . . . 1 Extermination Status 1 | . . . . . . . . . . . . . . . 1 Derelict Proto ID Bank 1 | . . . 1 . . . . . . . . . . . . Fabricator Hacks 1 | . . . . . . . 1 . . . . . . . . Build 1 | . . . . . . . 1 . . . . . . . . Repair Station Hacks 5 | . . . . . . 3 . 2 . . . . . . . Scan Component 3 | . . . . . . 2 . 1 . . . . . . . Repair 2 | . . . . . . 1 . 1 . . . . . . . Recycling Unit Hacks . | . . . . . . . . . . . . . . . . Scanalyzer . | . . . . . . . . . . . . . . . . Garrison Access Hacks . | . . . . . . . . . . . . . . . . Unauthorized Hacks . | . . . . . . . . . . . . . . . . Terminals . | . . . . . . . . . . . . . . . . Fabricators . | . . . . . . . . . . . . . . . . Repair Stations . | . . . . . . . . . . . . . . . . Recycling Units . | . . . . . . . . . . . . . . . . Scanalyzers . | . . . . . . . . . . . . . . . . Garrison Access . | . . . . . . . . . . . . . . . . Data Cores Recovered . | . . . . . . . . . . . . . . . . Used . | . . . . . . . . . . . . . . . . Hacking Detections 8 | . . . . . . 2 . 3 . . . . 1 . 2 Full Trace Events 1 | . . . . . . . . 1 . . . . . . . Feedback Events . | . . . . . . . . . . . . . . . . Feedback Blocked . | . . . . . . . . . . . . . . . . Robot Schematics Acquired . | . . . . . . . . . . . . . . . . Robots Built . | . . . . . . . . . . . . . . . . Authchips . | . . . . . . . . . . . . . . . . Time . | . . . . . . . . . . . . . . . . Total Robot Build Rating . | . . . . . . . . . . . . . . . . Part Schematics Acquired . | . . . . . . . . . . . . . . . . Parts Built 2 | . . . . . . . 2 . . . . . . . . Authchips . | . . . . . . . . . . . . . . . . Time 39 | . . . . . . . 39 . . . . . . . . Total Part Build Rating 14 | . . . . . . . 14 . . . . . . . . Parts Repaired 2 | . . . . . . 1 . 1 . . . . . . . Time 57 | . . . . . . 26 . 31 . . . . . . . Parts Recycled . | . . . . . . . . . . . . . . . . Recycled Matter . | . . . . . . . . . . . . . . . . Retrieved Matter . | . . . . . . . . . . . . . . . . Retrieved Components . | . . . . . . . . . . . . . . . . Parts Scanalyzed . | . . . . . . . . . . . . . . . . Part Schematics Acquired . | . . . . . . . . . . . . . . . . Parts Damaged . | . . . . . . . . . . . . . . . . Bothacking | -11 -10 -10 -10 -9 -8 -7 -6 -6 -6 -5 -5 -5 -4 -3 -2 ------------ Run | Yrd Mat Min Exi Min Mat Fac Fac Ext Cet Fac Upp Upp Fac Res Res Used RIF Installer . | . . . . . . . . . . . . . . . . Robots Hacked . | . . . . . . . . . . . . . . . . Non-combat . | . . . . . . . . . . . . . . . . Combat . | . . . . . . . . . . . . . . . . Robot Hacks Applied . | . . . . . . . . . . . . . . . . Relay Couplers Released . | . . . . . . . . . . . . . . . . Fabnet Peak Effective % . | . . . . . . . . . . . . . . . . Robots Rewired 14 | . . . . . . . . 12 . . 2 . . . . Allies Hacked . | . . . . . . . . . . . . . . . . Hacks Repelled . | . . . . . . . . . . . . . . . . Allies | -11 -10 -10 -10 -9 -8 -7 -6 -6 -6 -5 -5 -5 -4 -3 -2 -------- Run | Yrd Mat Min Exi Min Mat Fac Fac Ext Cet Fac Upp Upp Fac Res Res Total Allies 21 | . . . . 3 . . . 16 . . 2 . . . . Largest Group 7 | . . . . 3 1 . . 7 . . 1 . . . . Highest-Rated Group 347 | . . . . 40 8 . . 347 . . 29 . . . . Highest-Rated Ally 159 | . . . . 16 8 . . 159 . . 29 . . . . Total Orders . | . . . . . . . . . . . . . . . . Ally Attacks 192 | . . . . 31 1 . . 153 . . 7 . . . . Total Damage 3407 | . . . . 333 12 . . 2977 . . 85 . . . . Kills 26 | . . . . 5 . . . 21 . . . . . . . Allies Corrupted . | . . . . . . . . . . . . . . . . Allies Melted 1 | . . . . . . . . 1 . . . . . . . Intel | -11 -10 -10 -10 -9 -8 -7 -6 -6 -6 -5 -5 -5 -4 -3 -2 ------- Run | Yrd Mat Min Exi Min Mat Fac Fac Ext Cet Fac Upp Upp Fac Res Res Robot Analysis Total . | . . . . . . . . . . . . . . . . Derelict Logs Recovered 4 | . . . . 1 . . . . . . 3 . . . . Drone Launches . | . . . . . . . . . . . . . . . . Drone Recoveries . | . . . . . . . . . . . . . . . . Exploration | -11 -10 -10 -10 -9 -8 -7 -6 -6 -6 -5 -5 -5 -4 -3 -2 ------------- Run | Yrd Mat Min Exi Min Mat Fac Fac Ext Cet Fac Upp Upp Fac Res Res Turns Passed 7505 | 56 167 100 142 319 284 464 1208 1538 64 557 676 10 1219 204 497 Spaces Moved 8138 | 42 117 197 363 566 255 838 951 1014 54 227 1249 19 1047 324 875 Core 3326 | 21 1 . . . . . 257 . . 129 1228 19 649 161 861 Treads 25 | . . . . . . . . 25 . . . . . . . Legs 1389 | 21 116 6 . . . . 105 989 54 98 . . . . . Wheels . | . . . . . . . . . . . . . . . . Hover 560 | . . . . . . . . . . . . . 383 163 14 Flight 2838 | . . 191 363 566 255 838 589 . . . 21 . 15 . . Fastest Speed 21 | 50 100 37 37 37 31 31 21 90 120 50 32 50 44 50 40 Average Speed 66 | 106 119 39 37 37 31 33 87 112 120 216 49 50 57 60 50 Slowest Speed 700 | 150 120 120 37 37 34 111 250 270 120 700 115 50 435 120 120 Overloaded Moves . | . . . . . . . . . . . . . . . . Propulsion Burnouts . | . . . . . . . . . . . . . . . . Robots Hopped 26 | . . . . 5 3 8 10 . . . . . . . . Cave-ins Triggered . | . . . . . . . . . . . . . . . . Exploration Rate (%) 32 | 4 25 32 62 93 27 19 16 71 23 6 89 6 19 14 15 Regions Visited 15 Branch Regions 7 Pre-discovered Areas 3 | . . 1 . . . . . . . . 2 . . . . Known Exits Taken 1 | . . . . . . . . . . . . . 1 . . Unknown Exits Taken 14 | 1 1 1 1 1 1 1 1 1 1 1 1 1 . 1 . Scrap Searched 5 | . . . . 2 . . . . . . 3 . . . . Spaces Dug . | . . . . . . . . . . . . . . . . Terrain Destroyed 138 | . . . . . . . 2 3 . 11 . . 122 . . Melee . | . . . . . . . . . . . . . . . . Projectile 11 | . . . . . . . 2 3 . . . . 6 . . AOE 127 | . . . . . . . . . . 11 . . 116 . . Terrain Rammed . | . . . . . . . . . . . . . . . . Walls Destroyed . | . . . . . . . . . . . . . . . . Machines Disabled . | . . . . . . . . . . . . . . . . Actions | -11 -10 -10 -10 -9 -8 -7 -6 -6 -6 -5 -5 -5 -4 -3 -2 --------- Run | Yrd Mat Min Exi Min Mat Fac Fac Ext Cet Fac Upp Upp Fac Res Res Total 9824 | 50 138 213 370 666 429 977 1219 1303 53 274 1292 18 1562 334 926 Wait 1039 | . . 1 6 102 149 80 172 95 . 20 3 . 385 2 24 Move 8073 | 41 116 196 362 555 248 821 932 1013 53 226 1248 18 1046 323 875 Hop 24 | . . . . 5 3 8 8 . . . . . . . . Pick Up 27 | 2 3 3 1 . . 4 . 1 . . 2 . 8 1 2 Fast Attach 106 | 6 3 . . . 5 12 14 25 . 6 4 . 26 1 4 Attach 26 | . . 2 . . 4 2 1 . . 1 3 . 7 2 4 Detach 16 | . 2 . . . 3 2 . 1 . 1 2 . . 3 2 Swap 12 | . . . . . . 1 1 8 . . . . 2 . . Drop 64 | . 5 3 1 . 1 9 4 16 . 9 1 . 9 1 5 Fire 267 | . 9 8 . 4 16 20 72 55 . 9 9 . 64 . 1 Melee . | . . . . . . . . . . . . . . . . Ram 15 | . . . . . . . . . . 2 3 . . 1 9 Kick 7 | 1 . . . . . . . 6 . . . . . . . Crush 1 | . . . . . . . . 1 . . . . . . . Escape Stasis 53 | . . . . . . 18 15 5 . . . . 15 . . Rewire 94 | . . . . . . . . 77 . . 17 . . . . Trap . | . . . . . . . . . . . . . . . . Miscellaneous . | . . . . . . . . . . . . . . . . Route ------- -11/Scrapyard -10/Materials (discovered 2 exits: [*Mat] / [*Min]) -10/Mines (discovered 2 exits: [*Mat] / *Exi) -10/Exiles -9/Mines -8/Materials (discovered 2 exits: *Fac / Sto) -7/Factory -6/Factory -6/Extension (discovered 2 exits: [*Fac] / [*Cet]) -6/Cetus -5/Factory -5/Upper Caves -5/Upper Caves -4/Factory (discovered 3 exits: *Res x2 / Upp) -3/Research (discovered 2 exits: *Res / [*Arm]) -2/Research History --------- Turn | Location | Event 38 | -11/Scrapyard | Discovered new exit (range 15) 57 | -11/Scrapyard | Entered Materials 153 | -10/Materials | Discovered new exit (range 11) 171 | -10/Materials | Discovered new exit (range 14) 224 | -10/Materials | Entered Mines 292 | -10/Mines | Received a Rocket Launcher from a helpful Derelict 301 | -10/Mines | Discovered new exit (range 5) 302 | -10/Mines | Learned location of Storage (-8) 314 | -10/Mines | Build established: Mutant 322 | -10/Mines | Deemed a non-threat by the Exiles lab entrance 322 | -10/Mines | Discovered new exit (range 5) 324 | -10/Mines | Entered Exiles 333 | -10/Exiles | Met 8R-AWN 340 | -10/Exiles | Met EX-HEX 350 | -10/Exiles | Met EX-BIN 357 | -10/Exiles | Aligned with FarCom system 358 | -10/Exiles | Given EX-Vault access code 369 | -10/Exiles | Opened EX-Vault 385 | -10/Exiles | Exiles lab attacked by MAIN.C 387 | -10/Exiles | Found Cloak of Protection 462 | -10/Exiles | Discovered new exit (range 14) 466 | -10/Exiles | Left Exiles lab with Cloak of Protection 466 | -10/Exiles | Entered Mines 521 | -9/Mines | Learned location of 1 exit from Materials 533 | -9/Mines | Assisted by bots powering up and referring to "LRC-V3" 758 | -9/Mines | Discovered new exit (range 9) 785 | -9/Mines | Entered Materials 785 | -8/Materials | Accompanied by 1 ally 785 | -8/Materials | Evolved 4 slots: Power x1, Propulsion x2, Utility x1 786 | -8/Materials | Identified exit to Storage 1021 | -8/Materials | Discovered new exit (range 9) 1069 | -8/Materials | Entered Factory 1069 | -7/Factory | Evolved 2 slots: Propulsion x1, Utility x1 1146 | -7/Factory | Build established: Scavenger-Sprinter 1348 | -7/Factory | Repaired Flight Unit 1453 | -7/Factory | Discovered new exit (range 13) 1533 | -7/Factory | Entered another Factory area 1533 | -6/Factory | Evolved 2 slots: Power x1, Propulsion x1 1577 | -6/Factory | Build established: Hacker-Mutant 1899 | -6/Factory | Lost 5 parts (2p2n1w) 2007 | -6/Factory | Lost 9 parts (1p4n1u3w) 2025 | -6/Factory | Fabricated Hvy. Gauss Cannon (x2) 2204 | -6/Factory | Build established: Mutant 2692 | -6/Factory | Spotted B-75 Beast 2703 | -6/Factory | Discovered new exit (range 10) 2733 | -6/Factory | Lost 3 parts (1p2u) 2733 | -6/Factory | Core integrity fell below 50% 2741 | -6/Factory | Entered Extension 2975 | -6/Extension | Spotted B-75 Beast 3055 | -6/Extension | Repaired Hvy. Gauss Cannon 3090 | -6/Extension | Rescued a captive Derelict 3092 | -6/Extension | Rescued a captive Derelict 3215 | -6/Extension | Rescued A7 3395 | -6/Extension | Rescued a captive Derelict 3414 | -6/Extension | Build established: Scavenger-Mutant 3620 | -6/Extension | Spotted B-75 Beast 3621 | -6/Extension | Lost 5 allies 3630 | -6/Extension | Allies destroyed B-75 Beast 3640 | -6/Extension | Allies destroyed B-75 Beast 3839 | -6/Extension | Discovered new exit (range 16) 3840 | -6/Extension | Discovered new exit (range 15) 4175 | -6/Extension | Lost 5 allies 4279 | -6/Extension | Entered Cetus 4295 | -6/Cetus | Spotted Cetus Guard 4295 | -6/Cetus | Spotted Cetus Guard 4296 | -6/Cetus | Spotted Cetus Guard 4299 | -6/Cetus | Spotted Cetus Guard 4304 | -6/Cetus | Core integrity fell below 20% 4325 | -6/Cetus | Discovered new exit (range 16) 4343 | -6/Cetus | Entered Factory 4343 | -5/Factory | Evolved 2 slots: Utility x1, Weapon x1 4355 | -5/Factory | Lost 6 parts (1p4n1w) 4892 | -5/Factory | Discovered new exit (range 16) 4900 | -5/Factory | Entered Upper Caves 4953 | -5/Upper Caves | Encountered a Warlord checkpoint 4962 | -5/Upper Caves | Attracted the attention of an 0b10 checkpoint 4990 | -5/Upper Caves | Build established: Hacker-Mutant 5000 | -5/Upper Caves | Learned 12 Factory zone layouts 5115 | -5/Upper Caves | Spotted B-75 Beast 5132 | -5/Upper Caves | Attracted the attention of an 0b10 outpost 5323 | -5/Upper Caves | Learned location of Warlord (-4) 5344 | -5/Upper Caves | Core integrity fell below 50% 5400 | -5/Upper Caves | Lost 4 parts (2n2w) 5442 | -5/Upper Caves | Build established: Mutant 5461 | -5/Upper Caves | Core integrity fell below 20% 5563 | -5/Upper Caves | Discovered new exit (range 15) 5576 | -5/Upper Caves | Entered another Upper Caves area 5579 | -5/Upper Caves | Discovered new exit (range 13) 5586 | -5/Upper Caves | Entered Factory 5586 | -4/Factory | Evolved 2 slots: Propulsion x1, Utility x1 5587 | -4/Factory | Identified exit to Research 5587 | -4/Factory | Identified exit to Upper Caves 5953 | -4/Factory | Build established: Hacker-Mutant 6290 | -4/Factory | Lost 4 parts (1p2n1u) 6576 | -4/Factory | Build established: Scavenger-Skirmisher 6724 | -4/Factory | Lost 7 parts (1p2n1u3w) 6732 | -4/Factory | Destroyed 10 combat bots 6740 | -4/Factory | Core integrity fell below 50% 6782 | -4/Factory | Discovered exit to Research (range 7) 6785 | -4/Factory | Lost 7 parts (1p3n2u1w) 6805 | -4/Factory | Entered Research 6805 | -3/Research | Evolved 2 slots: Utility x2 6911 | -3/Research | Spotted B-86 Titan 7005 | -3/Research | Discovered new exit (range 6) 7008 | -3/Research | Discovered new exit (range 13) 7009 | -3/Research | Entered another Research area 7009 | -2/Research | Evolved 2 slots: Weapon x2 7031 | -2/Research | Build established: Hacker-Mutant 7289 | -2/Research | Spotted B-90 Cyclops 7337 | -2/Research | Garrison activated, responded to threat 7358 | -2/Research | Core integrity fell below 50% 7379 | -2/Research | Lost 4 parts (1p2u1w) 7431 | -2/Research | Core integrity fell below 20% 7506 | -2/Research | Destroyed by H-88 Terminator with KE Penetrator Last Messages --------------- Critical hit (Meltdown: +300). Slammed into R-10 Processor. ,Y0CC%9:F,O>=EELBNNRBZC System corrupted: Matter fused (-9). U-05 Engineer builds a Wall. Y-72 Warden emerges from the garrison. System corrupted: Component data lost. W-44 Eye distress signal alerts nearby ally. Drone sends a signal. Slammed into T-07 Excavator. Slammed into K-01 Serf. C-30 ARC bursts open, deploying its payload. H-88 Terminator unfolds itself. Slug penetrates Wall. Penetrated by Slug. Slug penetrates Wall. Slammed into H-88 Terminator. Destabilizing: System corrupted (+1). Slammed into H-88 Terminator. Slug penetrates Wall. Map ----- +----------------------------------------------------+ | ????????????????????????????????????????????????? | | ????????????????????????????????????????????????? | | ????????????????????????????????????????????????? | | ????????????????????????????????????????????????? | | ????????????????????????????????????????????????? | | ????????????????????????????????????????????????? | | ????????????????????????????????????????????????? | | ????????????????????????????????????????????????? | | ????????????????????????????????????????????????? | | ??????????????????????????? ????????????????????? | | ??????????????????????????? ???????????????????? | | ??????????????????????????? #??????????????????? | | ????????????????########### #??????????????????? | | ???????????????? ##+###?????????????? | | ????????????????? #?????????????? | | ?????????????????? ??????????????? | | ?????????????????? ???????????????? | | ??????????????????? ??BB????????????? | | ???????????????????? ???BB????????????? | | ????????????????????? ??????????????????? | | ?????????????????????? ???????????????????? | | ??????????????????????# #????????????????????? | | ??????????????????????# #?????????????????????? | | ??????????????######??# #?????????????????????? | | ??????????????# #### #?????????????????????? | | ??????????????# ! @##????????????????????? | | ??????????????# uh +????????????????????? | | ??????????????# h #########????????????????????? | | ????????????####+#####??????????????????????????? | | ????????????# %p #??????????????????????????? | | ????????????# #??????????????????????????? | | ????????????#""" #??????????????????????????? | | ????????????#""" #??????????????????????????? | | ????????????#""" #??????????????????????????? | | ????????????# #??????????????????????????? | | ????????????# #??????????????????????????? | | ????????????# #??????????????????????????? | | ?????? ???# #??????????????????????????? | | ?????? ?#######/####??????????????????????????? | | ?????? ?# ??# #?????????????????????????????? | | ?????# ## # ########??????????????????????? | | ?????# ## +l ???????????????? | | ?????# ## ! # ########??????????????????????? | | ?????? ?# ??# #?????????????????????????????? | | #####? ?##????# #?????????????????????????????? | | # ####### #?????????????????????????????? | | # #?????????????????????????????? | | # #####+###?????????????????????????????? | | #? ??# ] #?????????????????????????????? | | #?# #??# #?????????????????????????????? | +----------------------------------------------------+ Best States ------------- Heat Dissipation 76 Energy Generation 48 Energy Capacity 595 Matter Stores 300 Matter Capacity 300 Sight Range 16 Terrain Scan Density 10 ECM Strength 1 Additional Mass Support 9 Armor Coverage 150 Resistance: KI 20 Resistance: TH 45 Resistance: EX 20 Resistance: EM 20 Resistance: I 20 Resistance: S 20 Resistance: P 20 Evasion (%) 64 Targeting Accuracy 8 Recoil Reduction 1 Offensive Hacking 20 Defensive Hacking 10 Item Schematics ----------------- None Robot Schematics ------------------ None Fabricated ------------ Hvy. Gauss Cannon | x2 | -6/Factory | Preloaded Alien Tech Used ----------------- None Achievements -------------- None Challenges ------------ None Game ------ Seed FissionArmoredShovel Manual? 0 Play Time 01:43:00 Cumulative 26.5 hours Start 2025.04.26 @ 21:47:16 End 2025.04.27 @ 15:53:40 Sessions 3 Manual Loads 0 Difficulty Adventurer Special Mode None Game No. 35 Rogue 26 Adventurer 6 Explorer 3 Win Type - Total 0 Types 0/0/0/0/0/0/0/0/0 Lore% 9 Gallery% 30 Achievement% 25 Wizard Run 0 Options --------- Layout 1 ASCII 0 Keyboard 0 Movement Arrows Keybinds 0 Fullscreen 0 Font 28/ProggyBold Map View 50x43 Zoom Use 0% Tactical HUD 0 Map Filters NONE Filters NONE Steam X RUN: 53636433-e2df-4a85-85d8-00183a541884